bitfinex/quotes_ETHUSD_20220212
["timestamp","ask_amount","ask_price","bid_price","bid_amount"]
[1644695203145,1.80883891,2952.5,2951.8,0.63191852]
[1644695203146,0.00957508,2952.0,2951.8,0.63191852]
[1644695204042,4.40709872,2952.4,2951.8,0.63191852]
[1644695204243,4.40709872,2952.4,2951.5,0.00961765]
[1644695204244,0.00961572,2952.0,2951.5,0.00961765]
[1644695204648,1.44190471,2951.9,2951.5,0.00961765]
[1644695204848,0.00961572,2952.0,2951.5,0.00961765]
[1644695205049,0.17891572,2952.0,2951.5,0.00961765]
[1644695205248,1.0481649,2952.0,2951.4,0.89214262]
[1644695205450,0.00961599,2951.9,2951.5,0.00961744]
[1644695205949,3.34444616,2951.9,2951.5,0.00961744]
[1644695206205,0.00961599,2951.9,2951.5,0.00961744]
[1644695206404,1.0481649,2952.0,2951.4,0.89214262]
[1644695206603,0.00961607,2951.8,2951.5,0.00961736]
[1644695207606,0.8788649,2952.0,2951.4,0.89214262]
[1644695207805,3.54937117,2951.9,2950.8,6.6232]
[1644695208009,3.54937117,2951.9,2951.5,0.00961459]
[1644695208010,2.29875933,2951.8,2951.5,0.00961459]
[1644695208206,4.41705213,2951.7,2951.5,0.00961459]
[1644695208409,6.03070873,2951.6,2951.5,0.00961459]
[1644695208607,6.98600873,2951.6,2951.5,0.00961459]
[1644695209106,6.98600873,2951.6,2950.8,0.03846668]
[1644695209107,6.98600873,2951.6,2951.4,0.00961461]
[1644695209310,5.35108469,2951.5,2951.4,0.00961461]
[1644695209509,5.83708469,2951.5,2951.4,0.00961461]
[1644695209708,7.13708469,2951.5,2951.4,0.00961461]
[1644695209975,7.13708469,2951.5,2950.6,0.00300831]
[1644695210172,0.78604968,2951.2,2950.6,0.00300831]
[1644695210374,3.38194217,2951.1,2950.8,0.03606047]
[1644695210572,1.38604968,2951.2,2950.8,0.03606047]
[1644695210774,2.38604968,2951.2,2950.8,0.03606047]
[1644695211174,3.37211316,2951.1,2950.8,0.03606047]
[1644695211473,3.37211316,2951.1,2950.9,0.00901453]
[1644695211474,2.99502,2951.0,2950.9,0.00901453]
[1644695211675,6.98696705,2951.0,2950.9,0.00901453]
[1644695211877,7.47296705,2951.0,2950.9,0.00901453]
[1644695212479,14.25095122,2951.0,2950.0,0.00300831]
[1644695212778,14.25095122,2951.0,2950.4,0.03606386]
[1644695212779,0.3,2950.6,2950.4,0.03606386]
[1644695212979,0.1693,2950.5,2950.4,0.03606386]
[1644695213379,0.95261373,2950.3,2949.7,0.72603353]
[1644695213602,0.95261373,2950.3,2949.8,0.00300831]
[1644695213799,0.07212772,2950.3,2949.8,0.00300831]
[1644695214805,0.89018743,2950.2,2949.8,0.00300831]
[1644695215003,0.89018743,2950.2,2949.7,0.72603353]
[1644695215805,3.33181818,2950.1,2949.3,0.00300831]
[1644695216706,1.0,2950.0,2949.3,0.00300831]
[1644695216907,1.0,2950.0,2949.4,0.75672568]
[1644695217560,1.0,2950.0,2949.6,0.00965176]
[1644695218166,1.0,2950.1,2949.6,0.00965176]
[1644695218366,0.89018743,2950.2,2949.5,0.00300831]
[1644695218770,0.89018743,2950.2,2949.7,0.01019201]
[1644695218968,0.07212772,2950.3,2949.7,0.01019201]
[1644695219770,1.07212772,2950.3,2949.5,0.00300831]
[1644695219970,1.07212772,2950.3,2949.9,0.01019174]
[1644695220169,0.74071117,2950.2,2949.9,0.01019174]
[1644695220469,4.04136143,2950.2,2949.9,0.01019174]
[1644695220669,0.74071117,2950.2,2949.9,0.01019174]
[1644695220870,1.07212772,2950.3,2949.5,0.00300831]
[1644695220871,0.07212772,2950.3,2949.5,0.00300831]
[1644695221103,1.07212772,2950.3,2949.9,0.01019165]
[1644695221308,0.07212772,2950.3,2949.9,0.01019165]
[1644695222107,0.07212772,2950.3,2950.0,1.29494692]
[1644695222307,0.07212772,2950.3,2950.1,4.04892401]
[1644695222505,0.07212772,2950.3,2950.2,3.33891917]
[1644695222908,0.07212772,2950.3,2950.1,0.486]
[1644695223507,0.07212772,2950.3,2950.1,0.49619138]
[1644695223910,0.07212772,2950.3,2950.1,3.84287579]
[1644695224508,2.01662,2951.5,2950.2,6.85]
[1644695224714,0.1693,2951.2,2950.5,0.84715]
[1644695224958,1.1968,2952.1,2950.6,4.13538461]
[1644695224959,1.3661,2952.1,2950.6,4.13538461]
[1644695225255,1.44201592,2952.0,2950.7,0.00300831]
[1644695225456,1.44201592,2952.0,2950.8,0.486]
[1644695225653,1.44201592,2952.0,2951.7,0.74381919]
[1644695225857,0.01018831,2951.5,2951.0,3.949]
[1644695226055,0.01018831,2951.5,2950.9,0.48900831]
[1644695226259,0.01018831,2951.5,2950.9,3.81084088]
[1644695226860,1.17833328,2952.3,2951.3,0.66287998]
[1644695227059,1.44190165,2952.2,2951.3,0.66287998]
[1644695227459,2.44190165,2952.2,2951.3,0.66287998]
[1644695227659,1.44190165,2952.1,2951.3,0.66287998]
[1644695227960,2.47833328,2952.3,2951.1,3.41687071]
[1644695227961,0.87833328,2952.3,2951.1,3.41687071]
[1644695228163,1.44186795,2952.2,2951.1,3.41687071]
[1644695228465,0.01018768,2951.8,2951.1,3.41687071]
[1644695229100,0.01018768,2951.8,2951.5,0.87656214]
[1644695229299,0.87833328,2952.3,2951.5,0.87656214]
[1644695229500,0.01018813,2951.6,2951.5,0.87656214]
[1644695229702,0.01018813,2951.6,2951.0,0.84699]
[1644695230099,0.01018813,2951.6,2951.1,3.35252175]
[1644695230604,0.87833328,2952.3,2951.1,3.35252175]
[1644695230605,0.6,2952.3,2951.1,3.35252175]
[1644695230806,0.01018831,2951.5,2951.1,3.35252175]
[1644695231006,0.01018831,2951.5,2951.2,2.17972]
[1644695231211,0.01018831,2951.5,2951.3,3.43424855]
[1644695231610,0.01018831,2951.5,2951.4,0.8704545]
[1644695231807,0.1693,2952.3,2951.9,0.76439367]
[1644695232009,0.82013464,2952.4,2951.9,0.76439367]
[1644695232207,0.21003966,2952.5,2951.9,0.76439367]
[1644695232454,1.44172241,2952.4,2951.9,0.71439367]
[1644695232653,1.61102241,2952.4,2951.9,0.71439367]
[1644695232854,0.1693,2952.4,2951.9,0.71439367]
[1644695233052,1.97022994,2953.0,2951.9,0.71439367]
[1644695233053,0.1693,2952.9,2951.9,0.71439367]
[1644695233253,0.01018688,2952.3,2951.9,0.71439367]
[1644695233653,0.01018688,2952.3,2951.4,1.1995]
[1644695233854,0.01018688,2952.3,2951.3,3.3305]
[1644695234054,1.03215882,2952.4,2951.2,0.486]
[1644695234260,1.03215882,2952.4,2951.1,1.69372]
[1644695234261,0.1693,2952.2,2951.1,1.69372]
[1644695234460,0.01018741,2952.0,2951.1,1.69372]
[1644695234658,0.01018741,2952.0,2951.5,0.80957989]
[1644695235258,0.1693,2952.3,2951.5,0.80957989]
[1644695235658,0.01018759,2951.9,2951.5,0.80957989]
[1644695236307,0.01018759,2951.9,2951.5,1.65643989]
[1644695236507,1.1693,2952.8,2951.5,1.65643989]
[1644695236708,0.01018768,2951.8,2951.5,0.80957989]
[1644695237606,0.1693,2952.4,2951.5,0.80957989]
[1644695237806,2.1876,2952.9,2951.5,0.80957989]
[1644695237807,0.1693,2952.2,2951.5,0.80957989]
[1644695238008,1.0,2952.8,2951.5,0.80957989]
[1644695238009,0.01018777,2951.8,2951.5,0.80957989]
[1644695238209,0.01018777,2951.8,2951.5,0.80766189]
[1644695238409,0.00123789,2951.8,2951.5,0.80766189]
[1644695238909,0.1693,2952.4,2952.1,0.66589236]
[1644695239113,0.87195793,2951.9,2951.3,0.78225224]
[1644695239310,0.87195793,2951.9,2951.3,1.26825224]
[1644695240253,0.8821451,2951.9,2951.3,1.26825224]
[1644695240853,0.8821451,2951.9,2951.8,0.8416138]
[1644695241258,0.87195793,2951.9,2951.8,0.8416138]
[1644695241458,0.87195793,2951.9,2951.7,0.0267417]
[1644695242659,0.88214543,2951.9,2951.7,0.0267417]
[1644695243705,0.87195793,2951.9,2951.7,0.0267417]
[1644695243906,0.88214543,2951.9,2951.7,0.0267417]
[1644695244105,0.88214543,2951.9,2951.7,0.02227415]
[1644695244910,0.87195793,2951.9,2951.7,0.02227415]
[1644695245111,0.88214543,2951.9,2951.7,0.02227415]
[1644695246013,0.87195793,2951.9,2951.7,0.02227415]
[1644695246214,0.87195793,2951.9,2951.6,0.7247884]
[1644695246415,0.88214543,2951.9,2951.6,0.7247884]
[1644695247221,0.87195793,2951.9,2951.6,0.7247884]
[1644695247654,0.88214535,2951.9,2951.6,0.7247884]
[1644695248459,0.87195793,2951.9,2951.6,0.7247884]
[1644695248657,0.88214535,2951.9,2951.6,0.7247884]
[1644695249657,0.87195793,2951.9,2951.6,0.7247884]
[1644695249861,0.88214535,2951.9,2951.6,0.7247884]
[1644695250659,0.88214535,2951.9,2951.6,0.69808799]
[1644695250858,0.87195793,2951.9,2951.6,0.69808799]
[1644695251100,0.88214535,2951.9,2951.6,0.69808799]
[1644695252105,0.87195793,2951.9,2951.6,0.69808799]
[1644695252307,0.88214535,2951.9,2951.6,0.69808799]
[1644695253306,0.87195793,2951.9,2951.6,0.69808799]
[1644695253507,0.88214535,2951.9,2951.6,0.69808799]
[1644695254610,0.87195793,2951.9,2951.6,0.69808799]
[1644695254866,0.88214535,2951.9,2951.6,0.69808799]
[1644695255658,0.87195793,2951.9,2951.6,0.69808799]
[1644695256057,0.88214535,2951.9,2951.6,0.69808799]
[1644695256961,0.87195793,2951.9,2951.6,0.69808799]
[1644695257261,0.88214535,2951.9,2951.6,0.69808799]
[1644695258064,0.87195793,2951.9,2951.6,0.69808799]
[1644695258261,0.88214535,2951.9,2951.6,0.69808799]
[1644695259309,0.87195793,2951.9,2951.6,0.69808799]
[1644695259511,0.88214535,2951.9,2951.6,0.69808799]
[1644695260318,0.88214535,2951.9,2951.0,0.25]
[1644695260519,0.87195793,2951.9,2951.1,21.36372]
[1644695260919,0.88214535,2951.9,2951.1,21.36372]
[1644695261819,0.87195793,2951.9,2951.1,21.36372]
[1644695262019,0.88214493,2951.9,2951.5,0.72351365]
[1644695262863,0.87195793,2951.9,2951.5,1.57035365]
[1644695263259,0.88214527,2951.9,2951.5,1.57035365]
[1644695263460,0.88214527,2951.9,2951.5,0.72351365]
[1644695263659,0.88214527,2951.9,2951.1,21.84972]
[1644695264359,0.88214493,2951.9,2951.1,21.84972]
[1644695264759,0.88214493,2951.9,2951.5,0.72819379]
[1644695265362,0.87195793,2951.9,2951.5,0.72819379]
[1644695265659,0.88214527,2951.9,2951.5,0.72819379]
[1644695266509,0.87195793,2951.9,2951.5,0.72819379]
[1644695266708,0.88214527,2951.9,2951.5,0.72819379]
[1644695266911,4.9244164,2951.8,2950.9,3.04669106]
[1644695267111,1.44176024,2951.7,2950.9,0.01019106]
[1644695267309,3.58380815,2951.6,2950.9,0.01019106]
[1644695267510,1.44176024,2951.5,2950.9,0.01019106]
[1644695267710,3.28937259,2951.4,2950.7,3.8074]
[1644695267913,0.65118929,2951.2,2950.7,0.84388456]
[1644695268511,3.81207563,2951.6,2950.7,0.84388456]
[1644695268711,2.44198666,2951.5,2950.7,0.84195127]
[1644695269016,1.61128666,2951.4,2950.7,0.84005699]
[1644695269213,1.44198666,2951.3,2950.7,0.84005699]
[1644695269416,1.44198666,2951.4,2950.7,0.84005699]
[1644695269615,0.1693,2951.5,2950.7,0.84005699]
[1644695269872,1.44194998,2951.4,2950.7,0.84005699]
[1644695270462,1.44194998,2951.4,2950.9,0.01018418]
[1644695270658,3.4439674,2951.3,2950.9,0.01018418]
[1644695270858,1.44194998,2951.2,2950.9,0.01018418]
[1644695271058,3.52482905,2951.5,2950.9,0.01018418]
[1644695271263,1.44200277,2951.4,2950.7,0.84005699]
[1644695271464,1.61130277,2951.4,2950.7,0.84005699]
[1644695271662,1.44200277,2951.3,2950.9,0.0101841]
[1644695272061,0.63328709,2951.1,2950.9,0.0101841]
[1644695272462,0.63328709,2951.1,2950.5,0.00300831]
[1644695272662,1.44214531,2951.0,2950.5,0.00300831]
[1644695272864,1.44214531,2951.0,2950.9,0.00628371]
[1644695272865,4.71056844,2951.0,2950.9,0.00628371]
[1644695273069,1.74214531,2951.0,2950.9,0.00628371]
[1644695273264,1.74214531,2951.0,2950.4,0.04074239]
[1644695273265,0.01256742,2950.8,2950.4,0.04074239]
[1644695273464,1.44214531,2950.7,2950.4,0.04074239]
[1644695273706,1.44214531,2950.7,2950.3,0.00300831]
[1644695273909,1.44214531,2950.7,2949.9,0.00117543]
[1644695273910,4.16827343,2950.6,2949.9,0.00117543]
[1644695274108,4.94214531,2950.5,2949.7,0.00117543]
[1644695274307,4.94214531,2950.5,2949.1,0.25117543]
[1644695274308,1.91144531,2950.4,2949.1,0.25117543]
[1644695274506,1.44214531,2950.3,2949.2,0.00117543]
[1644695274706,0.1695,2950.2,2949.2,0.00117543]
[1644695274906,0.7495534,2949.8,2949.2,0.64499771]
[1644695275105,0.4695,2950.3,2949.2,0.64499771]
[1644695275106,0.1695,2950.3,2949.3,0.00117543]
[1644695275306,1.01711,2950.3,2949.6,0.00527954]
[1644695275611,0.4695,2950.3,2949.6,0.00527954]
[1644695276106,1.33145772,2950.3,2949.8,0.70053363]
[1644695276310,0.86195772,2950.3,2949.8,0.70053363]
[1644695276510,0.86195772,2950.3,2949.8,0.70698825]
[1644695276709,1.86195772,2950.3,2949.8,0.00645462]
[1644695276909,1.86195772,2950.3,2949.8,0.00527919]
[1644695277359,1.86195772,2950.3,2949.3,0.00117543]
[1644695277554,3.28833333,2950.2,2949.9,0.01018577]
[1644695277755,1.86195772,2950.3,2949.9,0.01018577]
[1644695278259,0.6,2950.4,2949.9,0.01018577]
[1644695278260,1.6,2950.4,2949.9,0.01018577]
[1644695278455,1.6,2950.4,2949.8,0.86023829]
[1644695278856,1.6,2950.4,2950.0,0.01018568]
[1644695279056,0.1693,2950.3,2950.0,0.01018568]
[1644695279658,3.40645371,2950.5,2949.8,0.86023829]
[1644695279856,2.10158823,2950.6,2949.8,0.86023829]
[1644695280057,0.73548823,2950.6,2950.0,0.01018559]
[1644695280459,0.1693,2950.7,2950.0,0.01018559]
[1644695281110,0.1693,2950.7,2949.8,0.86023829]
[1644695281316,0.1693,2950.7,2950.2,0.01018523]
[1644695281715,0.1693,2950.7,2950.3,0.71026932]
[1644695282315,0.1693,2950.7,2950.4,0.00859943]
[1644695283314,0.1693,2950.7,2950.3,0.71026932]
[1644695284715,0.01256742,2950.8,2950.3,0.71026932]
[1644695284952,0.01256742,2950.8,2950.3,0.69226932]
[1644695287257,0.01256742,2950.8,2950.4,0.01018501]
[1644695288057,0.01256742,2950.8,2950.3,0.69226932]
[1644695288458,0.01256742,2950.8,2950.4,0.01018509]
[1644695289308,0.01256742,2950.8,2950.3,0.69226932]
[1644695289708,0.01256742,2950.8,2950.4,0.01018509]
[1644695290508,0.01256742,2950.8,2950.3,0.69226932]
[1644695290708,0.87638464,2950.8,2950.3,0.69226932]
[1644695290908,0.87638464,2950.8,2950.4,0.01018509]
[1644695291110,0.01256742,2950.8,2950.4,0.01018509]
[1644695291714,0.01256742,2950.8,2950.3,0.69226932]
[1644695291913,0.01256742,2950.8,2950.4,0.01018509]
[1644695293059,0.01256742,2950.8,2950.3,0.69226932]
[1644695293259,0.01256742,2950.8,2950.4,0.01018509]
[1644695294059,0.01256742,2950.8,2950.3,0.69226932]
[1644695294459,0.01256742,2950.8,2950.4,0.01018509]
[1644695295268,0.01256742,2950.8,2950.1,0.00117543]
[1644695295667,0.01256742,2950.8,2950.4,0.01018509]
[1644695296105,3.36867348,2950.8,2950.4,0.01018509]
[1644695296511,3.36867348,2950.8,2950.2,0.00117543]
[1644695296908,3.36867348,2950.8,2950.4,0.01018509]
[1644695296909,4.21618348,2950.8,2950.4,0.01018509]
[1644695297316,0.01256742,2950.8,2950.4,0.01018509]
[1644695297710,0.01256742,2950.8,2950.2,0.00117543]
[1644695297912,0.01256742,2950.8,2950.6,0.6891737]
[1644695298511,0.01256742,2950.8,2950.4,0.01018509]
[1644695298911,0.01256742,2950.8,2950.1,0.00117543]
[1644695299313,0.01256742,2950.8,2950.4,0.01018509]
[1644695299958,0.01256742,2950.8,2950.3,0.66932963]
[1644695301562,0.01748713,2950.8,2950.3,0.66932963]
[1644695302565,0.01256742,2950.8,2950.3,0.66932963]
[1644695302765,0.02275106,2950.8,2950.3,0.67951502]
[1644695303809,0.01256742,2950.8,2950.3,0.66932963]
[1644695304009,0.02275106,2950.8,2950.3,1.52672502]
[1644695304412,0.02275106,2950.8,2950.3,0.67951502]
[1644695305013,0.01256742,2950.8,2950.3,0.66932963]
[1644695305212,0.02275106,2950.8,2950.3,0.67951502]
[1644695306229,0.01256742,2950.8,2950.4,0.486]
[1644695306420,0.01256742,2950.8,2950.6,1.69368]
[1644695306421,0.01018364,2950.8,2950.6,1.69368]
[1644695306618,0.01018364,2950.8,2950.7,0.486]
[1644695307475,3.5,2951.8,2950.7,0.486]
[1644695307675,0.0101835,2950.9,2950.7,0.486]
[1644695308074,0.0101835,2950.9,2950.8,0.64085846]
[1644695308274,0.0101835,2950.9,2950.8,1.12685846]
[1644695308675,0.81499556,2951.8,2951.3,0.89070966]
[1644695308874,1.44198423,2951.7,2950.8,0.486]
[1644695310080,1.04125793,2951.9,2951.0,0.847]
[1644695310376,1.04125793,2951.9,2951.0,1.147]
[1644695310377,0.01018261,2951.4,2951.0,1.147]
[1644695310577,0.01018261,2951.4,2951.1,2.17969]
[1644695310775,0.01018261,2951.4,2951.1,2.77969]
[1644695310977,0.87195793,2951.9,2951.1,3.77969]
[1644695311225,0.87195793,2951.9,2951.2,0.65590812]
[1644695311226,0.01018261,2951.4,2951.2,0.65590812]
[1644695311426,0.01018261,2951.4,2951.2,1.14190812]
[1644695312228,0.87195793,2951.9,2951.2,1.14190812]
[1644695312450,0.01018252,2951.4,2951.2,1.14190812]
[1644695312627,0.01018252,2951.4,2951.2,0.65590812]
[1644695313427,0.87195793,2951.9,2951.2,0.65590812]
[1644695313726,0.01018252,2951.4,2951.2,0.65590812]
[1644695314524,0.87195793,2951.9,2951.2,0.65590812]
[1644695314725,0.87195793,2951.9,2951.2,0.95590812]
[1644695314960,0.87195793,2951.9,2951.2,1.25590812]
[1644695314961,0.01018252,2951.4,2951.2,1.25590812]
[1644695315159,0.01018252,2951.4,2951.2,0.95590812]
[1644695315559,0.01018252,2951.4,2951.2,0.90590812]
[1644695315757,0.87195793,2951.9,2951.2,0.90590812]
[1644695315959,0.01018252,2951.4,2951.2,0.90590812]
[1644695316963,0.87195793,2951.9,2951.2,0.90590812]
[1644695317162,0.01018252,2951.4,2951.2,0.90590812]
[1644695317864,0.01018252,2951.4,2951.2,0.65590812]
[1644695319509,0.87195793,2951.9,2951.2,0.65590812]
[1644695319710,0.01018252,2951.4,2951.2,0.65590812]
[1644695320309,0.01018252,2951.4,2951.3,0.486]
[1644695320512,0.87195793,2951.9,2951.3,0.486]
[1644695320711,0.87195793,2951.9,2951.8,0.65616614]
[1644695320912,0.77195793,2951.9,2951.8,0.65616614]
[1644695321117,0.77195793,2951.9,2951.8,1.14216614]
[1644695322561,0.77195793,2951.9,2951.8,0.65616614]
[1644695322764,0.72195793,2951.9,2951.8,0.65616614]
[1644695329959,0.72195793,2951.9,2951.3,1.33291]
[1644695329960,0.72195793,2951.9,2951.4,0.3]
[1644695330163,0.72195793,2951.9,2951.3,0.786]
[1644695331165,0.72195793,2951.9,2951.7,0.84400677]
[1644695332866,0.73213956,2951.9,2951.7,0.84400677]
[1644695333917,0.72195793,2951.9,2951.7,0.84400677]
[1644695334116,0.73213956,2951.9,2951.7,0.84400677]
[1644695335118,0.72195793,2951.9,2951.7,0.84400677]
[1644695335316,0.73213956,2951.9,2951.7,0.84400677]
[1644695336323,0.72195793,2951.9,2951.7,0.84400677]
[1644695336523,0.73213956,2951.9,2951.7,0.84400677]
[1644695337359,0.72195793,2951.9,2951.7,0.84400677]
[1644695337761,0.73213956,2951.9,2951.7,0.84400677]
[1644695338769,0.72195793,2951.9,2951.7,0.84400677]
[1644695338973,0.73213956,2951.9,2951.7,0.84400677]
[1644695339571,0.73213956,2951.9,2951.8,0.84677]
[1644695339770,0.73213956,2951.9,2951.7,0.84400677]
[1644695339771,0.72195793,2951.9,2951.7,0.84400677]
[1644695340270,0.73213956,2951.9,2951.7,0.84400677]
[1644695341110,0.72195793,2951.9,2951.7,0.84400677]
[1644695341317,0.73213956,2951.9,2951.7,0.84400677]
[1644695342321,0.72195793,2951.9,2951.7,0.84400677]
[1644695342521,0.73213956,2951.9,2951.8,0.84677]
[1644695343324,0.73213956,2951.9,2951.7,0.84400677]
[1644695343520,0.72195793,2951.9,2951.7,0.84400677]
[1644695343724,0.72081177,2951.9,2951.7,0.84400677]
[1644695344321,0.72081177,2951.9,2951.8,0.84677]
[1644695344522,0.72081177,2951.9,2951.8,1.33277]
[1644695345982,0.72081177,2951.9,2951.8,1.50207]
[1644695346579,0.72081177,2951.9,2951.8,0.6553]
[1644695346979,0.00332733,2952.6,2951.9,5.15]
[1644695347183,1.44481082,2952.7,2952.5,0.84162152]
[1644695347380,1.54509997,2952.9,2951.9,5.15]
[1644695347381,0.69599053,2952.3,2951.9,5.15]
[1644695347579,0.69599053,2952.3,2952.0,0.84821104]
[1644695347784,0.69599053,2952.3,2952.0,1.69493104]
[1644695347982,0.69599053,2952.3,2952.1,1.69315]
[1644695348181,0.69599053,2952.3,2952.1,2.17915]
[1644695348641,0.70617144,2952.3,2952.1,0.486]
[1644695349631,0.69599053,2952.3,2952.1,0.486]
[1644695349831,0.70617144,2952.3,2952.1,0.486]
[1644695350631,0.69599053,2952.3,2952.1,0.486]
[1644695351034,0.70582784,2952.3,2952.1,0.486]
[1644695352034,0.69599053,2952.3,2952.1,0.486]
[1644695352236,0.70582784,2952.3,2952.1,0.486]
[1644695353066,0.69599053,2952.3,2952.1,0.486]
[1644695353269,0.69599053,2952.3,2951.8,0.1693]
[1644695353469,0.70582784,2952.3,2950.9,8.2268]
[1644695353671,4.94492051,2952.2,2950.9,8.2268]
[1644695353873,1.44159318,2952.1,2950.9,8.2268]
[1644695354270,0.1693,2952.0,2951.5,0.80853629]
[1644695354771,0.00959747,2951.6,2951.5,0.80853629]
[1644695355575,0.1693,2952.1,2951.5,0.80853629]
[1644695355773,0.00959739,2951.7,2951.5,0.80853629]
[1644695356750,0.1693,2952.1,2951.5,0.80853629]
[1644695356949,0.00959732,2951.7,2951.5,0.80853629]
[1644695357754,0.00959732,2951.7,2950.9,8.2268]
[1644695357955,0.1693,2952.1,2950.9,0.1693]
[1644695357956,1.61111131,2951.6,2950.9,0.1693]
[1644695358156,4.96812932,2951.5,2950.9,0.1693]
[1644695358456,1.44191191,2951.4,2950.9,0.1693]
[1644695358654,3.4487626,2951.3,2950.9,0.1693]
[1644695359059,1.44201771,2951.2,2950.9,0.1693]
[1644695359456,1.45163175,2951.2,2950.9,0.1693]
[1644695359656,0.1693,2951.1,2950.9,0.1693]
[1644695360472,1.1693,2951.2,2950.9,0.1693]
[1644695360671,1.1693,2951.2,2950.1,0.00292164]
[1644695360672,4.92631477,2951.1,2950.3,0.00961711]
[1644695360872,4.63164073,2951.1,2950.3,0.00961711]
[1644695361477,0.89098905,2951.0,2950.2,0.00292164]
[1644695361674,0.89098905,2951.0,2950.3,0.88592126]
[1644695361873,0.89098905,2951.0,2950.4,0.00292164]
[1644695361874,0.0096134,2950.8,2950.4,0.00292164]
[1644695362672,4.21960101,2951.1,2950.4,0.00292164]
[1644695363073,0.00961352,2950.8,2950.4,0.00292164]
[1644695363917,3.37219101,2951.1,2950.4,0.00292164]
[1644695364116,0.00961352,2950.8,2950.4,0.00292164]
[1644695365117,0.83669998,2951.0,2950.4,0.00292164]
[1644695365418,0.00961367,2950.8,2950.4,0.00292164]
[1644695365820,0.00961367,2950.8,2950.3,0.89273475]
[1644695366017,0.00961367,2950.8,2950.3,0.89565883]
[1644695366422,0.83669998,2951.0,2950.3,0.88604351]
[1644695366620,0.00961358,2950.8,2950.3,0.89565874]
[1644695367494,2.01666,2951.2,2950.3,0.88604351]
[1644695367694,0.00961358,2950.8,2950.3,0.89565874]
[1644695368696,0.6,2951.1,2950.3,0.88604351]
[1644695368896,0.3,2951.1,2950.3,0.88604351]
[1644695369098,0.00961357,2950.8,2950.3,0.89565873]
[1644695369897,0.6,2951.1,2950.3,0.89565873]
[1644695369898,0.6,2951.1,2950.3,0.88604351]
[1644695370099,0.00961357,2950.8,2950.3,0.89565873]
[1644695371220,3.885,2951.1,2950.3,0.88604351]
[1644695371419,0.00961357,2950.8,2950.3,0.89565873]
[1644695372320,1.0,2951.0,2950.3,0.88604351]
[1644695372520,0.00961265,2950.8,2950.3,0.89565781]
[1644695373622,0.1693,2951.0,2950.3,0.88604351]
[1644695373821,0.00961265,2950.8,2950.3,0.89565781]
[1644695374864,0.1693,2951.0,2950.3,0.88604351]
[1644695375067,0.00961265,2950.8,2950.3,0.89565781]
[1644695375869,1.7693,2951.1,2950.3,0.88604351]
[1644695375870,5.0878123,2951.1,2950.3,0.88604351]
[1644695376170,0.0096137,2950.8,2950.3,0.01253943]
[1644695376370,0.1693,2950.7,2950.3,0.00961535]
[1644695377174,0.1693,2950.7,2950.1,0.00292408]
[1644695377370,0.1693,2950.7,2950.3,0.00961526]
[1644695378373,0.1693,2950.7,2950.1,0.00292408]
[1644695378614,0.97205803,2950.8,2950.3,0.00961526]
[1644695378815,1.97205803,2950.8,2950.3,0.00961526]
[1644695379215,1.27205803,2950.8,2950.3,0.00961526]
[1644695379415,1.97205803,2950.8,2950.3,0.00961526]
[1644695379626,1.97205803,2950.8,2950.1,0.00292408]
[1644695379627,1.26244441,2950.8,2950.1,0.00292408]
[1644695379823,0.97205797,2950.8,2950.3,0.00961521]
[1644695380021,0.17891356,2950.8,2950.3,0.00961521]
[1644695380221,0.47891356,2950.8,2950.3,0.00961521]
[1644695380822,1.4693,2950.8,2950.1,0.00292408]
[1644695381023,0.17891356,2950.8,2950.3,0.00961521]
[1644695381224,0.30961356,2950.8,2950.3,0.00961521]
[1644695381426,2.95741356,2950.8,2950.3,0.00961521]
[1644695381626,3.86140254,2950.7,2950.3,0.00961521]
[1644695381825,1.0,2950.6,2950.3,0.00961521]
[1644695382026,0.84759,2950.4,2949.8,0.00292408]
[1644695382225,0.84759,2950.4,2950.3,0.00961521]
[1644695382478,2.95133831,2950.4,2950.3,0.00961521]
[1644695383074,1.14759,2950.4,2949.7,0.00292408]
[1644695383472,1.14759,2950.4,2950.2,0.00961505]
[1644695383679,2.14759,2950.4,2950.2,0.00961505]
[1644695383879,1.14759,2950.4,2950.2,0.00961505]
[1644695384283,2.14759,2950.4,2949.7,0.00292408]
[1644695384580,2.14759,2950.4,2950.2,0.00961513]
[1644695384982,1.14759,2950.4,2950.2,0.00961513]
[1644695385888,2.14759,2950.4,2950.2,0.00961513]
[1644695386822,1.14759,2950.4,2949.7,0.00292408]
[1644695387021,5.46595384,2950.4,2950.2,0.00961515]
[1644695387221,2.14759,2950.4,2950.2,0.00961515]
[1644695387825,1.14759,2950.4,2950.2,0.00961515]
[1644695388024,1.14759,2950.4,2949.7,0.00292408]
[1644695388225,1.14759,2950.4,2950.2,0.00961515]
[1644695389126,1.14759,2950.4,2949.7,0.00292408]
[1644695389324,1.14759,2950.4,2950.2,0.00961515]
[1644695390275,1.14759,2950.4,2949.7,0.00292408]
[1644695390468,1.14610476,2950.4,2949.7,0.00292408]
[1644695390768,0.29851476,2950.4,2950.2,0.00961515]
[1644695391172,1.7053416,2950.5,2950.2,0.00961515]
[1644695391672,1.7053416,2950.5,2949.7,0.00292408]
[1644695391875,0.7053416,2950.5,2950.2,0.00961507]
[1644695392075,1.7053416,2950.5,2950.2,0.00961507]
[1644695392275,1.0053416,2950.5,2950.2,0.00961507]
[1644695392677,1.0053416,2950.5,2949.7,0.00292408]
[1644695392879,2.0053416,2950.5,2949.7,0.00292408]
[1644695393077,2.0053416,2950.5,2950.2,0.00961507]
[1644695393477,1.3,2950.5,2950.2,0.00961507]
[1644695393919,1.3,2950.5,2949.7,0.00292408]
[1644695394120,3.52804312,2950.4,2950.2,0.00961507]
[1644695394321,1.0,2950.3,2950.2,0.00961507]
[1644695394723,1.3,2950.3,2950.2,0.00961507]
[1644695394923,0.3,2950.3,2950.2,0.00961507]
[1644695395123,1.10653688,2950.4,2949.7,0.00292408]
[1644695395322,1.10653688,2950.4,2950.1,0.00961523]
[1644695395726,4.1215113,2950.3,2950.1,0.00961523]
[1644695396025,4.71103491,2950.2,2950.1,0.00961523]
[1644695396224,5.18033491,2950.2,2950.1,0.00961523]
[1644695396426,5.18033491,2950.2,2949.1,0.00292408]
[1644695396725,5.18033491,2950.2,2950.0,0.00961539]
[1644695396926,1.4693,2950.2,2950.0,0.00961539]
[1644695397378,3.28762135,2950.1,2950.0,0.00961539]
[1644695397569,1.4693,2950.2,2949.6,0.00292408]
[1644695397772,3.16478,2950.2,2950.0,0.00961548]
[1644695397973,0.84772,2950.1,2950.0,0.00961548]
[1644695398176,4.08312174,2950.1,2950.0,0.00961548]
[1644695398373,5.07888974,2950.1,2950.0,0.00961548]
[1644695398575,5.08613347,2950.1,2950.0,0.00961548]
[1644695398773,1.84772,2950.1,2949.6,0.00292408]
[1644695398974,1.84772,2950.1,2949.9,0.00961556]
[1644695399379,1.0,2950.1,2949.9,0.00961556]